fUSD/lending_fUSD_20240521
["ID","MTS","AMOUNT","RATE_DAILY","PERIOD"]
[327673856,1716306649559,-500.0,0.00032876,6]
[327673857,1716306649568,-527.74370003,0.00032876,6]
[327673858,1716306649577,-500.0,0.00032876,6]
[327673859,1716306649586,-604.72,0.00032876,6]
[327673860,1716306649595,-500.0,0.00032876,6]
[327673861,1716306649606,-339.57,0.00032876,6]
[327673862,1716306649615,-500.0,0.00032876,6]
[327673863,1716306649624,-528.10334277,0.00032876,6]
[327673864,1716306649637,-623.19,0.00032876,6]
[327673865,1716306649646,-500.0,0.00032876,6]
[327673866,1716306649656,-503.84739562,0.00032876,6]
[327673867,1716306649665,-500.0,0.00032876,6]
[327673868,1716306649676,-470.29545325,0.00032876,6]
[327673869,1716306649685,-500.0,0.00032876,6]
[327673870,1716306649696,-500.0,0.00032876,6]
[327673871,1716306649708,-726.65,0.00032876,6]
[327673872,1716306649717,-500.0,0.00032876,6]
[327673873,1716306649727,-500.0,0.00032876,6]
[327673874,1716306649739,-500.0,0.00032876,6]
[327673875,1716306649748,-500.0,0.00032876,6]
[327673876,1716306649757,-500.0,0.00032876,6]
[327673877,1716306649767,-500.0,0.00032876,6]
[327673878,1716306649776,-563.39,0.00032876,6]
[327673879,1716306649786,-509.9341759,0.00032876,6]
[327673880,1716306649795,-500.0,0.00032876,6]
[327673881,1716306649805,-500.0,0.00032876,6]
[327673882,1716306649814,-592.21,0.00032876,6]
[327673883,1716306649823,-500.0,0.00032876,6]
[327673884,1716306649832,-569.93,0.00032876,6]
[327673885,1716306649842,-506.87547464,0.00032876,6]
[327673886,1716306649851,-670.31,0.00032876,6]
[327673887,1716306649861,-500.0,0.00032876,6]
[327673888,1716306649870,-517.90270823,0.00032876,6]
[327673889,1716306649880,-500.0,0.00032876,6]
[327673890,1716306649889,-320.37608788,0.00032876,6]
[327673891,1716306649898,-1201.15,0.00032876,6]
[327673892,1716306649908,-500.0,0.00032876,2]
[327673893,1716306649917,-212.25009884,0.00032876,6]
[327673894,1716306649926,-506.05299894,0.00032876,6]
[327673895,1716306649935,-500.0,0.00032876,6]
[327673896,1716306649945,-500.0,0.00032876,6]
[327673897,1716306649954,-538.08130815,0.00032876,6]
[327673898,1716306649963,-509.39460903,0.00032876,6]
[327673899,1716306649972,-500.0,0.00032876,6]
[327673900,1716306649982,-506.31241506,0.00032876,6]
[327673901,1716306649994,-500.0,0.00032876,6]
[327673902,1716306650003,-2387.81,0.00032876,6]
[327673903,1716306650012,-536.86668539,0.00032876,6]
[327673904,1716306650021,-500.0,0.00032876,6]
[327673905,1716306650030,-506.67274204,0.00032876,6]
[327673906,1716306650039,-500.0,0.00032876,6]
[327673907,1716306650049,-500.0,0.00032876,6]
[327673908,1716306650058,-839.07,0.00032876,6]
[327673909,1716306650068,-500.0,0.00032876,6]
[327673910,1716306650165,-911.11,0.00032876,6]
[327673911,1716306650174,-500.0,0.00032876,6]
[327673912,1716306650183,-500.0,0.00032876,6]
[327673913,1716306650193,-724.44,0.00032876,6]
[327673914,1716306650202,-500.0,0.00032876,6]
[327673915,1716306650212,-500.0,0.00032876,2]
[327673916,1716306650222,-518.29625476,0.00032876,6]
[327673917,1716306650231,-610.82,0.00032876,6]
[327673918,1716306650245,-500.0,0.00032876,6]
[327673919,1716306650255,-500.0,0.00032876,6]
[327673920,1716306650266,-450.89688275,0.00032876,6]
[327673921,1716306650275,-527.78175801,0.00032876,6]
[327673922,1716306650285,-926.41,0.00032876,6]
[327673923,1716306650295,-500.0,0.00032876,6]
[327673924,1716306650304,-506.46044463,0.00032876,6]
[327673925,1716306650315,-500.0,0.00032876,6]
[327673926,1716306650325,-518.03674008,0.00032876,6]
[327673927,1716306650334,-500.0,0.00032876,6]
[327673928,1716306650344,-500.0,0.00032876,6]
[327673929,1716306650353,-500.0,0.00032876,6]
[327673930,1716306650364,-500.0,0.00032876,6]
[327673931,1716306650373,-500.0,0.00032876,6]
[327673932,1716306650382,-912.22,0.00032876,6]
[327673933,1716306650391,-500.0,0.00032876,6]
[327673934,1716306650400,-500.0,0.00032876,6]
[327673935,1716306650409,-1057.64,0.00032876,6]
[327673936,1716306650418,-500.0,0.00032876,6]
[327673937,1716306650428,-539.41129024,0.00032876,6]
[327673938,1716306650437,-500.0,0.00032876,6]
[327673939,1716306650445,-795.05,0.00032876,6]
[327673940,1716306650455,-511.75068408,0.00032876,6]
[327673941,1716306650465,-500.0,0.00032876,6]
[327673942,1716306650475,-528.2150357,0.00032876,6]
[327673943,1716306650485,-500.0,0.00032876,6]
[327673944,1716306650494,-500.0,0.00032876,6]
[327673945,1716306650504,-500.0,0.00032876,6]
[327673946,1716306650513,-500.0,0.00032876,6]
[327673947,1716306650526,-500.0,0.00032876,6]
[327673948,1716306650535,-500.0,0.00032876,6]
[327673949,1716306650544,-500.0,0.00032876,6]
[327673950,1716306650554,-500.0,0.00032876,6]
[327673951,1716306650563,-500.0,0.00032876,6]
[327673952,1716306650572,-500.0,0.00032876,6]
[327673953,1716306650581,-500.0,0.00032876,6]
[327673954,1716306650591,-500.0,0.00032876,6]
[327673955,1716306650602,-512.20403631,0.00032876,6]
[327673956,1716306650611,-500.0,0.00032876,6]
[327673957,1716306650620,-500.0,0.00032876,6]
[327673958,1716306650630,-500.0,0.00032876,6]
[327673959,1716306650640,-500.0,0.00032876,6]
[327673960,1716306650650,-519.99,0.00032876,6]
[327673961,1716306650659,-831.68,0.00032876,6]
[327673962,1716306650671,-512.93585477,0.00032876,6]
[327673963,1716306650680,-500.0,0.00032876,6]
[327673964,1716306650690,-506.68634104,0.00032876,6]
[327673965,1716306650699,-500.0,0.00032876,6]
[327673966,1716306650710,-500.0,0.00032876,6]
[327673967,1716306650719,-514.66480745,0.00032876,6]
[327673968,1716306650728,-500.0,0.00032876,6]
[327673969,1716306650740,-507.68508453,0.00032876,6]
[327673970,1716306650749,-500.0,0.00032876,6]
[327673971,1716306650758,-500.0,0.00032876,6]
[327673972,1716306650767,-546.67295775,0.00032876,6]
[327673973,1716306650776,-510.16152598,0.00032876,6]
[327673974,1716306650785,-500.0,0.00032876,6]
[327673975,1716306650794,-500.0,0.00032876,6]
[327673976,1716306650804,-1173.72,0.00032876,6]
[327673977,1716306650813,-500.0,0.00032876,6]
[327673978,1716306650822,-666.61,0.00032876,6]
[327673979,1716306650831,-506.29454674,0.00032876,6]
[327673980,1716306650840,-500.0,0.00032876,6]
[327673981,1716306650849,-500.0,0.00032876,6]
[327673982,1716306650859,-500.0,0.00032876,6]
[327673983,1716306650867,-506.96,0.00032876,6]
[327673984,1716306650876,-500.0,0.00032876,6]
[327673985,1716306650885,-525.64152722,0.00032876,6]
[327673986,1716306650895,-531.89291857,0.00032876,6]
[327673987,1716306650905,-500.0,0.00032876,6]
[327673988,1716306650915,-500.0,0.00032876,6]
[327673989,1716306650925,-750.75,0.00032876,6]
[327673990,1716306650935,-1036.16,0.00032876,6]
[327673991,1716306650944,-1158.43,0.00032876,6]
[327673992,1716306650953,-500.0,0.00032876,6]
[327673993,1716306650963,-500.0,0.00032876,6]
[327673994,1716306650972,-594.64,0.00032876,6]
[327673995,1716306650982,-500.0,0.00032876,6]
[327673996,1716306650995,-500.0,0.00032876,6]
[327673997,1716306651004,-500.0,0.00032876,6]
[327673998,1716306651013,-1221.19,0.00032876,6]
[327673999,1716306651022,-500.0,0.00032876,6]
[327674000,1716306651030,-500.0,0.00032876,6]
[327674001,1716306651039,-691.21,0.00032876,6]
[327674002,1716306651049,-500.0,0.00032876,6]
[327674003,1716306651058,-803.25,0.00032876,6]
[327674004,1716306651068,-500.0,0.00032876,6]
[327674005,1716306651077,-1034.55507975,0.00032876,6]
[327674006,1716306651087,-537.88577491,0.00032876,6]
[327674007,1716306651096,-500.0,0.00032876,6]
[327674008,1716306651105,-519.24322873,0.00032876,6]
[327674009,1716306651114,-442.30946344,0.00032876,6]
[327674010,1716306651123,-500.0,0.00032876,6]
[327674011,1716306651133,-500.0,0.00032876,6]
[327674012,1716306651142,-500.0,0.00032876,6]
[327674013,1716306651151,-500.0,0.00032876,6]
[327674014,1716306651160,-500.0,0.00032876,6]
[327674015,1716306651169,-500.0,0.00032876,6]
[327674016,1716306651179,-984.63,0.00032876,6]
[327674017,1716306651188,-528.92786511,0.00032876,6]
[327674018,1716306651197,-500.0,0.00032876,6]
[327674019,1716306651207,-855.33,0.00032876,6]
[327674020,1716306651216,-500.0,0.00032876,6]
[327674021,1716306651225,-759.93,0.00032876,6]
[327674022,1716306651238,-500.0,0.00032876,6]
[327674023,1716306651247,-500.0,0.00032876,6]
[327674024,1716306651256,-533.07211796,0.00032876,6]
[327674025,1716306651265,-500.0,0.00032876,6]
[327674026,1716306651275,-513.6,0.00032876,6]
[327674027,1716306651284,-500.0,0.00032876,6]
[327674028,1716306651292,-502.90639466,0.00032876,6]
[327674029,1716306651302,-1876.17,0.00032876,6]
[327674030,1716306651311,-523.9,0.00032876,6]
[327674031,1716306651320,-500.0,0.00032876,6]
[327674032,1716306651330,-500.0,0.00032876,6]
[327674033,1716306651339,-500.0,0.00032876,6]
[327674034,1716306651349,-500.0,0.00032876,6]
[327674035,1716306651358,-875.38,0.00032876,6]
[327674036,1716306651368,-822.46,0.00032876,6]
[327674037,1716306651377,-500.0,0.00032876,6]
[327674038,1716306651386,-1669.07,0.00032876,6]
[327674039,1716306651396,-525.71,0.00032876,6]
[327674040,1716306651406,-222.68084354,0.00032876,6]
[327674041,1716306651431,-113.1186173,0.00032876,6]
[327674042,1716306651440,-500.0,0.00032876,6]
[327674043,1716306651451,-500.0,0.00032876,6]
[327674044,1716306651460,-757.55,0.00032876,6]
[327674045,1716306651470,-455.53696116,0.00032876,6]
[327674046,1716306651480,-500.0,0.00032876,6]
[327674047,1716306651490,-500.0,0.00032876,6]
[327674048,1716306651499,-500.0,0.00032876,6]
[327674049,1716306651508,-500.0,0.00032876,6]
[327674050,1716306651517,-500.0,0.00032876,6]
[327674051,1716306651526,-500.0,0.00032876,6]
[327674052,1716306651536,-810.69,0.00032876,6]
[327674053,1716306651545,-596.17343076,0.00032876,6]
[327674054,1716306651555,-500.0,0.00032876,6]
[327674055,1716306651565,-500.0,0.00032876,6]
[327674056,1716306651574,-500.0,0.00032876,6]
[327674057,1716306651583,-500.0,0.00032876,6]
[327674058,1716306651593,-500.0,0.00032876,6]
[327674059,1716306651604,-1367.3,0.00032876,6]
[327674060,1716306651614,-500.0,0.00032876,6]
[327674061,1716306651623,-500.0,0.00032876,6]
[327674062,1716306651635,-1227.41,0.00032876,6]
[327674063,1716306651645,-755.33,0.00032876,6]
[327674064,1716306651655,-500.0,0.00032876,6]
[327674065,1716306651664,-500.0,0.00032876,6]
[327674066,1716306651675,-504.72124756,0.00032876,6]
[327674067,1716306651684,-500.0,0.00032876,6]
[327674068,1716306651693,-500.0,0.00032876,6]
[327674069,1716306651703,-500.0,0.00032876,6]
[327674070,1716306651715,-500.0,0.00032876,6]
[327674071,1716306651723,-500.0,0.00032876,6]
[327674072,1716306651732,-500.0,0.00032876,6]
[327674073,1716306651744,-786.89,0.00032876,6]
[327674074,1716306651753,-500.0,0.00032876,6]
[327674075,1716306651763,-500.0,0.00032876,6]
[327674076,1716306651772,-500.0,0.00032876,6]
[327674077,1716306651781,-827.78,0.00032876,6]
[327674078,1716306651790,-500.0,0.00032876,6]
[327674079,1716306651800,-500.0,0.00032876,6]
[327674080,1716306651810,-1017.63,0.00032876,6]
[327674081,1716306651825,-715.82,0.00032876,6]
[327674082,1716306651843,-500.0,0.00032876,6]
[327674083,1716306651852,-500.0,0.00032876,6]
[327674084,1716306651863,-212.78730298,0.00032876,6]
[327674085,1716306651873,-535.28210494,0.00032876,6]
[327674086,1716306651882,-500.0,0.00032876,6]
[327674087,1716306651892,-644.82458787,0.00032876,6]
[327674088,1716306651904,-437.85327217,0.00032876,6]
[327674089,1716306651913,-500.0,0.00032876,6]
[327674090,1716306651923,-1874.78,0.00032876,6]
[327674091,1716306651931,-500.0,0.00032876,6]
[327674092,1716306651942,-280.2293932,0.00032876,6]
[327674093,1716306651953,-500.0,0.00032876,6]
[327674094,1716306651962,-1299.22,0.00032876,6]
[327674095,1716306651971,-1074.35,0.00032876,6]
[327674096,1716306651982,-500.0,0.00032876,6]
[327674097,1716306651997,-500.0,0.00032876,6]
[327674098,1716306652008,-778.39,0.00032876,6]
[327674099,1716306652017,-509.31484167,0.00032876,14]
[327674100,1716306652026,-500.0,0.00032876,6]
[327674101,1716306652035,-500.0,0.00032876,6]
[327674102,1716306652045,-500.0,0.00032876,6]
[327674103,1716306652054,-500.0,0.00032876,6]
[327674104,1716306652063,-500.0,0.00032876,6]
[327674105,1716306652073,-545.85563014,0.00032876,6]
[327674106,1716306652082,-500.0,0.00032876,6]
[327674107,1716306652091,-541.76534964,0.00032876,6]
[327674108,1716306652101,-500.0,0.00032876,6]
[327674109,1716306652110,-506.06708543,0.00032876,6]
[327674110,1716306652119,-860.67,0.00032876,6]
[327674111,1716306652128,-2156.48,0.00032876,6]
[327674112,1716306652138,-731.01,0.00032876,6]
[327674113,1716306652147,-500.0,0.00032876,6]
[327674114,1716306652157,-500.0,0.00032876,6]
[327674115,1716306652167,-500.0,0.00032876,6]
[327674116,1716306652176,-518.95859796,0.00032876,6]
[327674117,1716306652185,-500.05949994,0.00032876,6]
[327674118,1716306652194,-775.91,0.00032876,6]
[327674119,1716306652203,-529.94860668,0.00032876,6]
[327674120,1716306652213,-500.0,0.00032876,6]
[327674121,1716306652222,-501.53678435,0.00032876,6]
[327674122,1716306652232,-528.65254287,0.00032876,6]
[327674123,1716306652244,-500.0,0.00032876,6]
[327674124,1716306652254,-500.0,0.00032876,6]
[327674125,1716306652263,-500.0,0.00032876,6]
[327674126,1716306652272,-641.356716,0.00032876,6]
[327674127,1716306652281,-1359.54,0.00032876,6]
[327674128,1716306652290,-500.0,0.00032876,6]
[327674129,1716306652299,-500.0,0.00032876,6]
[327674130,1716306652309,-500.0,0.00032876,6]
[327674131,1716306652318,-525.74866776,0.00032876,6]
[327674132,1716306652327,-500.0,0.00032876,6]
[327674133,1716306652337,-500.0,0.00032876,6]
[327674134,1716306652347,-1041.81,0.00032876,6]
[327674135,1716306652357,-500.0,0.00032876,6]
[327674136,1716306652366,-500.0,0.00032876,6]
[327674137,1716306652375,-545.88767315,0.00032876,6]
[327674138,1716306652384,-500.0,0.00032876,6]
[327674139,1716306652394,-500.0,0.00032876,6]
[327674140,1716306652403,-500.0,0.00032876,6]
[327674141,1716306652415,-1406.58,0.00032876,6]
[327674142,1716306652424,-500.0,0.00032876,6]
[327674143,1716306652435,-856.64,0.00032876,6]
[327674144,1716306652451,-500.0,0.00032876,6]
[327674145,1716306652462,-500.0,0.00032876,6]
[327674146,1716306652472,-1955.39,0.00032876,6]
[327674147,1716306652482,-500.0,0.00032876,6]
[327674148,1716306652493,-857.78,0.00032876,6]
[327674149,1716306652503,-500.0,0.00032876,6]
[327674150,1716306652513,-500.0,0.00032876,6]
[327674151,1716306652522,-1646.88,0.00032876,6]
[327674152,1716306652531,-500.0,0.00032876,6]
[327674153,1716306652540,-1340.95,0.00032876,6]
[327674154,1716306652550,-500.0,0.00032876,6]
[327674155,1716306652559,-1704.46,0.00032876,6]
[327674156,1716306652569,-500.0,0.00032876,6]
[327674157,1716306652578,-500.0,0.00032876,6]
[327674158,1716306652588,-541.20172856,0.00032876,6]
[327674159,1716306652598,-500.0,0.00032876,6]
[327674160,1716306652608,-500.0,0.00032876,6]
[327674161,1716306652618,-500.0,0.00032876,6]
[327674162,1716306652747,-506.46067836,0.00032876,6]
[327674163,1716306652757,-500.0,0.00032876,6]
[327674164,1716306652771,-500.0,0.00032876,6]
[327674165,1716306652781,-510.41654124,0.00032876,6]
[327674166,1716306652791,-500.0,0.00032876,6]
[327674167,1716306652801,-500.0,0.00032876,6]
[327674168,1716306652811,-519.30906488,0.00032876,6]
[327674169,1716306652821,-598.5,0.00032876,6]
[327674170,1716306652831,-500.0,0.00032876,6]
[327674171,1716306652840,-562.76344879,0.00032876,6]
[327674172,1716306652850,-523.28049615,0.00032876,6]
[327674173,1716306652858,-500.0,0.00032876,6]
[327674174,1716306652867,-500.0,0.00032876,6]
[327674175,1716306652877,-1012.16,0.00032876,6]
[327674176,1716306652887,-500.0,0.00032876,6]
[327674177,1716306652896,-500.0,0.00032876,6]
[327674178,1716306652906,-816.17,0.00032876,6]
[327674179,1716306652916,-500.0,0.00032876,6]
[327674180,1716306652926,-500.0,0.00032876,6]
[327674181,1716306652935,-500.0,0.00032876,6]
[327674182,1716306652944,-500.0,0.00032876,6]
[327674183,1716306652953,-500.0,0.00032876,6]
[327674184,1716306652962,-739.99,0.00032876,6]
[327674185,1716306652973,-500.0,0.00032876,6]
[327674186,1716306652982,-500.0,0.00032876,6]
[327674187,1716306652995,-1058.11,0.00032876,6]
[327674188,1716306653005,-500.0,0.00032876,6]
[327674189,1716306653014,-500.0,0.00032876,6]
[327674190,1716306653023,-900.18,0.00032876,6]
[327674191,1716306653032,-500.0,0.00032876,6]
[327674192,1716306653043,-500.0,0.00032876,6]
[327674193,1716306653052,-236.39301938,0.00032876,6]
[327674194,1716306653062,-1061.36,0.00032876,6]
[327674195,1716306653072,-989.02,0.00032876,6]
[327674196,1716306653082,-500.0,0.00032876,6]
[327674197,1716306653093,-500.0,0.00032876,6]
[327674198,1716306653102,-500.0,0.00032876,6]
[327674199,1716306653113,-150.0,0.00032876,6]
[327674200,1716306653123,-500.0,0.00032876,6]
[327674201,1716306653134,-1192.84,0.00032876,6]
[327674202,1716306653143,-500.0,0.00032876,6]
[327674203,1716306653153,-500.0,0.00032876,6]
[327674204,1716306653163,-500.0,0.00032876,6]
[327674205,1716306653173,-500.0,0.00032876,6]
[327674206,1716306653183,-426.57594662,0.00032876,6]
[327674207,1716306653192,-500.0,0.00032876,6]
[327674208,1716306653202,-1300.07,0.00032876,6]
[327674209,1716306653211,-518.82672606,0.00032876,6]
[327674210,1716306653220,-500.0,0.00032876,6]
[327674211,1716306653230,-606.4,0.00032876,6]
[327674212,1716306653242,-500.0,0.00032876,6]
[327674213,1716306653251,-500.0,0.00032876,6]
[327674214,1716306653260,-243.73851326,0.00032876,6]
[327674215,1716306653269,-500.0,0.00032876,6]
[327674216,1716306653279,-500.0,0.00032876,6]
[327674217,1716306653288,-823.81,0.00032876,6]
[327674218,1716306653296,-512.46959507,0.00032876,6]
[327674219,1716306653305,-500.0,0.00032876,6]
[327674220,1716306653314,-518.69,0.00032876,6]
[327674221,1716306653324,-500.0,0.00032876,6]
[327674222,1716306653333,-500.0,0.00032876,6]
[327674223,1716306653342,-500.0,0.00032876,6]
[327674224,1716306653352,-500.0,0.00032876,6]
[327674225,1716306653362,-500.0,0.00032876,6]
[327674226,1716306653371,-786.07,0.00032876,6]
[327674227,1716306653380,-500.0,0.00032876,6]
[327674228,1716306653390,-500.0,0.00032876,6]
[327674229,1716306653400,-516.95344129,0.00032876,6]
[327674230,1716306653410,-500.0,0.00032876,6]
[327674231,1716306653419,-500.0,0.00032876,6]
[327674232,1716306653429,-1668.67,0.00032876,6]
[327674233,1716306653438,-500.0,0.00032876,6]
[327674234,1716306653448,-500.0,0.00032876,6]
[327674235,1716306653457,-500.0,0.00032876,6]
[327674236,1716306653467,-500.0,0.00032876,6]
[327674237,1716306653476,-1156.83,0.00032876,6]
[327674238,1716306653489,-500.0,0.00032876,6]
[327674239,1716306653499,-16.62889049,0.00032876,6]
[327674240,1716306653520,-483.37110951,0.00032876,6]
[327674241,1716306653529,-1270.58109049,0.00032876,6]
[327674242,1716306653541,-53.06890951,0.00032876,6]
[327674243,1716306653552,-500.0,0.00032876,6]
[327674244,1716306653562,-500.0,0.00032876,6]
[327674245,1716306653571,-500.0,0.00032876,6]
[327674246,1716306653581,-856.99,0.00032876,6]
[327674247,1716306653590,-500.0,0.00032876,6]
[327674248,1716306653603,-500.0,0.00032876,6]
[327674249,1716306653612,-508.21970139,0.00032876,6]
[327674250,1716306653625,-542.00529308,0.00032876,6]
[327674251,1716306653638,-513.05119719,0.00032876,6]
[327674252,1716306653648,-521.36,0.00032876,6]
[327674253,1716306653657,-500.0,0.00032876,6]
[327674254,1716306653666,-500.0,0.00032876,6]
[327674255,1716306653677,-749.19,0.00032876,6]
[327674256,1716306653687,-500.0,0.00032876,6]
[327674257,1716306653697,-500.0,0.00032876,6]
[327674258,1716306653709,-507.18718404,0.00032876,6]
[327674259,1716306653718,-500.0,0.00032876,6]
[327674260,1716306653728,-500.0,0.00032876,6]
[327674261,1716306653740,-500.0,0.00032876,6]
[327674262,1716306653750,-2252.66,0.00032876,6]
[327674263,1716306653759,-532.72444851,0.00032876,6]
[327674264,1716306653769,-684.93,0.00032876,6]
[327674265,1716306653780,-500.0,0.00032876,6]
[327674266,1716306653790,-777.44,0.00032876,6]
[327674267,1716306653799,-500.0,0.00032876,6]
[327674268,1716306653810,-1315.38,0.00032876,6]
[327674269,1716306653820,-527.55321303,0.00032876,6]
[327674270,1716306653829,-1130.13,0.00032876,6]
[327674271,1716306653840,-500.0,0.00032876,6]
[327674272,1716306653852,-397.74701043,0.00032876,6]
[327674273,1716306653970,-272.20298957,0.00032876,6]
[327674274,1716306653980,-407.19759643,0.00032876,6]
[327674275,1716306682799,-1000.0,0.00033,30]
[327674276,1716306682849,-237305.6317369,0.0003315,21]
[327674277,1716306682900,-500.0,0.0003315,30]
[327674278,1716306720138,-700.0,0.000326,11]
[327674279,1716306720185,-1400.0,0.000327,11]
[327674280,1716306720234,-2100.0,0.000328,11]
[327674281,1716306720282,-5265.79398732,0.0003286,14]
[327674282,1716306720332,-703.68240357,0.00032876,6]
[327674283,1716306720380,-500.0,0.00032876,6]
[327674284,1716306720426,-500.0,0.00032876,6]
[327674285,1716306720472,-500.0,0.00032876,6]
[327674286,1716306720519,-974.25,0.00032876,6]
[327674287,1716306720565,-500.0,0.00032876,6]
[327674288,1716306720611,-509.85,0.00032876,6]
[327674289,1716306720657,-500.0,0.00032876,6]
[327674290,1716306720704,-553.64,0.00032876,6]
[327674291,1716306720753,-500.0,0.00032876,6]
[327674292,1716306720936,-500.0,0.00032876,6]
[327674293,1716306720980,-568.11,0.00032876,6]
[327674294,1716306721024,-509.03,0.00032876,6]
[327674295,1716306721069,-1297.57,0.00032876,6]
[327674296,1716306721113,-500.0,0.00032876,6]
[327674297,1716306721157,-1254.86,0.00032876,6]
[327674298,1716306721201,-500.0,0.00032876,6]
[327674299,1716306721247,-500.0,0.00032876,6]
[327674300,1716306721294,-500.0,0.00032876,6]
[327674301,1716306721339,-541.12,0.00032876,6]
[327674302,1716306721386,-998.43,0.00032876,6]
[327674303,1716306721432,-500.0,0.00032876,6]
[327674304,1716306721478,-525.06253742,0.00032876,6]
[327674305,1716306721523,-500.0,0.00032876,6]
[327674306,1716306721568,-504.60651082,0.00032876,6]
[327674307,1716306721613,-500.0,0.00032876,6]
[327674308,1716306721662,-515.65720533,0.00032876,6]
[327674309,1716306721937,-550.12,0.00032876,6]
[327674310,1716306721988,-513.85,0.00032876,6]
[327674311,1716306722035,-506.67184097,0.00032876,6]
[327674312,1716306722089,-680.66,0.00032876,6]
[327674313,1716306722135,-500.0,0.00032876,6]
[327674314,1716306722181,-500.0,0.00032876,6]
[327674315,1716306722228,-500.0,0.00032876,6]
[327674316,1716306722275,-500.0,0.00032876,6]
[327674317,1716306722323,-688.39,0.00032876,6]
[327674318,1716306722371,-500.0,0.00032876,6]
[327674319,1716306722416,-509.86892489,0.00032876,6]
[327674320,1716306722464,-500.0,0.00032876,6]
[327674321,1716306722513,-500.0,0.00032876,6]
[327674322,1716306722569,-500.0,0.00032876,6]
[327674323,1716306722616,-500.0,0.00032876,6]
[327674324,1716306722663,-516.93234685,0.00032876,6]
[327674325,1716306722709,-506.61675779,0.00032876,6]
[327674326,1716306722762,-500.0,0.00032876,6]
[327674327,1716306722807,-500.0,0.00032876,6]
[327674328,1716306722854,-1468.86,0.00032876,6]
[327674329,1716306722899,-634.17,0.00032876,6]
[327674330,1716306722942,-500.09138599,0.00032876,6]
[327674331,1716306722986,-1717.59,0.00032876,6]
[327674332,1716306723030,-150.0,0.00032876,6]
[327674333,1716306723078,-500.0,0.00032876,6]
[327674334,1716306723123,-1454.47,0.00032876,6]
[327674335,1716306723169,-500.0,0.00032876,6]
[327674336,1716306723213,-500.0,0.00032876,6]
[327674337,1716306723257,-500.0,0.00032876,6]
[327674338,1716306723302,-500.0,0.00032876,6]
[327674339,1716306723344,-500.0,0.00032876,6]
[327674340,1716306723388,-500.0,0.00032876,6]
[327674341,1716306723433,-1271.59,0.00032876,6]
[327674342,1716306723476,-1288.79,0.00032876,6]
[327674343,1716306723520,-500.0,0.00032876,6]
[327674344,1716306723565,-500.0,0.00032876,6]
[327674345,1716306723609,-507.08890116,0.00032876,6]
[327674346,1716306723659,-544.68,0.00032876,6]
[327674347,1716306724478,-500.0,0.00032876,6]
[327674348,1716306724524,-515.34826771,0.00032876,6]
[327674349,1716306724567,-1063.58,0.00032876,6]
[327674350,1716306724610,-500.0,0.00032876,6]
[327674351,1716306724657,-505.50923755,0.00032876,6]
[327674352,1716306724703,-630.23,0.00032876,6]
[327674353,1716306724746,-507.51354329,0.00032876,6]
[327674354,1716306724792,-1185.19,0.00032876,6]
[327674355,1716306724840,-500.0,0.00032876,6]